bitfinex/quotes_ETHUSD_20210401
["timestamp","ask_amount","ask_price","bid_price","bid_amount"]
[1617253118540,0.42,1917.1,1916.5,0.14]
[1617253118742,3.91196,1916.8,1916.6,0.09406894]
[1617253118940,3.91196,1916.8,1916.1,14.9041]
[1617253118941,0.308,1916.7,1916.2,10.43103]
[1617253119140,0.308,1916.7,1916.1,0.23406894]
[1617253119741,6.03494672,1916.6,1916.1,0.23406894]
[1617253119969,6.03494672,1916.6,1915.7,1.2]
[1617253119970,9.94720824,1916.6,1915.8,7.82562]
[1617253120173,0.308,1916.5,1915.9,0.09406894]
[1617253121167,0.308,1916.5,1916.0,0.00926587]
[1617253121168,3.91295,1916.4,1916.0,0.00926587]
[1617253121369,3.9128,1916.3,1916.1,0.39]
[1617253122391,3.9128,1916.3,1916.0,0.00926587]
[1617253122591,3.91258,1916.2,1916.0,0.00926587]
[1617253122992,2.91258,1916.2,1916.0,0.00926587]
[1617253128037,1.91258,1916.2,1916.0,0.00926587]
[1617253129234,1.91258,1916.2,1916.0,5.01926587]
[1617253129436,1.91258,1916.2,1915.8,8.61]
[1617253129637,3.9131,1916.1,1915.8,5.01]
[1617253130473,3.9131,1916.1,1915.4,10.52897894]
[1617253130474,3.91354,1915.9,1915.4,10.52897894]
[1617253130677,3.91384,1915.7,1915.4,0.09406894]
[1617253130872,3.91384,1915.7,1915.4,3.68]
[1617253131071,3.91384,1915.7,1915.3,0.14]
[1617253131470,3.91384,1915.7,1915.4,0.0083792]
[1617253132274,7.82782,1915.7,1915.4,4.9683792]
[1617253133087,6.82782,1915.7,1915.3,0.14]
[1617253133490,14.65682,1915.7,1915.3,0.14]
[1617253133690,14.65682,1915.7,1915.0,10.43727]
[1617253133894,14.65682,1915.7,1914.8,0.09406894]
[1617253133895,3.9145,1915.5,1914.8,0.09406894]
[1617253134092,7.82926,1915.5,1914.9,0.38]
[1617253134493,7.57926,1915.5,1914.9,0.38]
[1617253134692,7.57926,1915.5,1915.1,0.41]
[1617253135840,7.57926,1915.5,1914.8,0.23406894]
[1617253136038,7.57926,1915.5,1914.8,0.64406894]
[1617253136039,0.329,1915.4,1914.8,0.64406894]
[1617253136639,0.329,1915.4,1915.1,0.39]
[1617253136839,7.82973,1915.6,1915.2,0.4]
[1617253136840,5.21993,1915.6,1915.2,0.4]
[1617253137039,5.49993,1915.6,1914.8,0.23406894]
[1617253137238,5.49993,1915.6,1915.0,0.38]
[1617253137437,5.49993,1915.6,1915.1,0.41]
[1617253138040,3.91439,1915.5,1915.1,0.41]
[1617253138242,7.82904,1915.5,1915.2,0.39]
[1617253138446,7.82904,1915.5,1915.0,0.38]
[1617253138643,0.322,1915.4,1915.0,0.38]
[1617253139444,0.072,1915.4,1915.0,0.38]
[1617253139643,7.82904,1915.5,1915.0,0.38]
[1617253140446,7.82904,1915.5,1915.1,0.41]
[1617253140843,7.82904,1915.5,1915.2,0.4]
[1617253141862,7.82904,1915.5,1915.3,0.00726947]
[1617253143064,6.57904,1915.5,1915.3,0.00726947]
[1617253144688,14.40921,1915.5,1915.3,0.00726947]
[1617253144888,2.66439,1915.5,1915.4,0.39]
[1617253145890,2.66439,1915.5,1915.3,0.00726947]
[1617253146318,2.66439,1915.5,1915.3,0.41726947]
[1617253146916,2.41439,1915.5,1915.3,0.41726947]
[1617253148116,14.0,1915.4,1915.3,0.41726947]
[1617253149538,14.0,1915.4,1915.3,0.00726947]
[1617253149736,21.83021,1915.4,1915.3,0.00726947]
[1617253150539,21.83021,1915.4,1914.7,0.49406894]
[1617253150540,28.75,1915.3,1914.7,0.49406894]
[1617253150750,10.287,1915.2,1914.4,14.2222]
[1617253150948,10.287,1915.2,1913.9,21.9715]
[1617253150949,21.725,1915.2,1913.9,21.9715]
[1617253151137,21.725,1915.2,1914.0,0.23406894]
[1617253151138,0.322,1914.8,1914.0,0.23406894]
[1617253151338,12.43309654,1915.1,1914.3,0.14]
[1617253151606,12.13909654,1915.3,1915.0,0.4]
[1617253151768,13.0515,1915.3,1915.0,0.4]
[1617253151965,13.0515,1915.3,1914.5,7.8307]
[1617253151966,5.22071,1915.3,1914.5,7.8307]
[1617253152166,4.20218,1915.2,1914.8,0.4]
[1617253152568,4.20218,1915.2,1915.1,0.00634774]
[1617253153171,3.91518,1915.2,1915.1,0.00634774]
[1617253156515,3.778038,1915.2,1915.1,0.00634774]
[1617253157915,24.058888,1915.2,1915.1,0.00634774]
[1617253159342,11.608888,1915.2,1915.1,0.00634774]
[1617253159742,19.408888,1915.2,1915.1,0.00634774]
[1617253160742,19.408888,1915.2,1915.1,0.39634774]
[1617253161742,11.608888,1915.2,1915.1,0.39634774]
[1617253163567,3.778038,1915.2,1915.1,0.39634774]
[1617253164599,3.778038,1915.2,1915.1,0.79634774]
[1617253164797,3.778038,1915.2,1915.1,0.39634774]
[1617253165001,3.778038,1915.2,1915.1,0.80634774]
[1617253165599,14.0,1915.4,1915.1,0.80634774]
[1617253165799,14.0,1915.4,1915.3,0.39]
[1617253166622,14.0,1915.4,1915.3,5.4]
[1617253168827,14.0,1915.4,1915.3,5.01]
[1617253169027,14.0,1915.4,1915.1,5.40634774]
[1617253169227,14.0,1915.4,1915.1,5.81634774]
[1617253169866,14.0,1915.4,1915.1,0.80634774]
[1617253171064,14.0,1915.4,1915.2,0.39]
[1617253171866,21.82965,1915.4,1915.2,0.39]
[1617253172666,21.82965,1915.4,1915.2,0.3627]
[1617253172866,21.82965,1915.4,1915.1,0.39634774]
[1617253173065,21.82965,1915.4,1915.1,0.80634774]
[1617253173867,14.0,1915.4,1915.2,0.39]
[1617253177296,14.0,1915.4,1915.1,0.39634774]
[1617253177497,14.0,1915.4,1915.1,0.80634774]
[1617253177720,14.0,1915.4,1915.1,0.39634774]
[1617253177918,14.0,1915.4,1915.1,0.78634774]
[1617253178119,14.0,1915.4,1915.3,0.39]
[1617253180550,14.0,1915.4,1915.3,7.14]
[1617253181353,14.0,1915.4,1915.3,14.9674]
[1617253181552,14.0,1915.4,1915.3,24.5674]
[1617253181756,14.0,1915.4,1915.3,28.3474]
[1617253182156,13.0,1915.4,1915.3,28.3474]
[1617253182553,13.0,1915.4,1915.3,29.5474]
[1617253182753,13.0,1915.4,1915.3,19.9474]
[1617253183592,13.0,1915.4,1915.3,35.8474]
[1617253184792,13.0,1915.4,1915.3,19.9474]
[1617253185794,13.0,1915.4,1915.3,30.620337]
[1617253186395,13.0,1915.4,1915.3,31.964837]
[1617253186596,13.0,1915.4,1915.3,32.2419]
[1617253186796,13.0,1915.4,1915.3,21.2919]
[1617253187196,12.0,1915.4,1915.3,21.2919]
[1617253190851,12.0,1915.4,1915.3,19.9474]
[1617253192250,11.0,1915.4,1915.3,19.9474]
[1617253193474,11.0,1915.4,1915.3,27.7974]
[1617253195074,11.0,1915.4,1915.3,19.9474]
[1617253195475,11.0,1915.4,1915.3,29.1474]
[1617253196304,11.0,1915.4,1915.3,37.1474]
[1617253197102,11.0,1915.4,1915.3,29.1474]
[1617253197308,10.0,1915.4,1915.3,29.1474]
[1617253197508,10.0,1915.4,1915.3,37.1474]
[1617253198305,10.0,1915.4,1915.3,42.8474]
[1617253198505,10.0,1915.4,1915.3,53.520337]
[1617253198746,10.0,1915.4,1915.3,47.820337]
[1617253199947,10.0,1915.4,1915.3,39.820337]
[1617253200150,10.0,1915.4,1915.3,30.620337]
[1617253200347,10.0,1915.4,1915.3,19.9474]
[1617253201352,10.0,1915.4,1915.3,39.3974]
[1617253201554,13.45736,1916.7,1915.3,39.3974]
[1617253201555,0.9985435,1916.6,1915.4,3.34406894]
[1617253201754,0.9985435,1916.6,1916.3,0.38]
[1617253201755,0.28,1916.6,1916.3,0.38]
[1617253202156,3.19152,1916.9,1916.3,0.38]
[1617253202352,3.33152,1916.9,1916.3,0.38]
[1617253202551,3.33152,1916.9,1916.3,0.47406894]
[1617253202751,3.33152,1916.9,1916.3,0.38]
[1617253202952,3.91139,1916.8,1916.3,0.38]
[1617253203152,3.91139,1916.8,1916.3,8.20252]
[1617253203552,0.14,1916.9,1916.3,8.20252]
[1617253203974,0.14,1916.9,1916.4,0.09406894]
[1617253205373,0.14,1916.9,1916.3,8.20252]
[1617253205973,0.14,1916.9,1916.3,7.82252]
[1617253206599,0.14,1916.9,1916.3,8.22252]
[1617253206998,0.14,1916.9,1916.4,0.301]
[1617253207197,6.96252,1917.0,1916.4,0.301]
[1617253207398,7.10252,1917.0,1916.4,0.301]
[1617253207599,11.01409,1917.0,1916.4,0.301]
[1617253208398,4.05157,1917.0,1916.4,0.301]
[1617253208799,7.82307,1916.9,1916.4,0.701]
[1617253210027,2.82307,1916.9,1916.4,0.701]
[1617253210427,6.1377372,1917.0,1916.4,0.701]
[1617253211227,6.1377372,1917.0,1916.5,0.39]
[1617253211228,2.2261672,1917.0,1916.5,0.39]
[1617253211860,2.0861672,1917.0,1916.4,0.39506894]
[1617253212057,2.0861672,1917.0,1916.5,0.4]
[1617253212258,1.0861672,1917.0,1916.5,0.4]
[1617253213259,1.0861672,1917.0,1916.5,8.22195]
[1617253214508,1.0861672,1917.0,1916.5,17.89175]
[1617253215305,11.87333,1917.1,1916.5,17.89175]
[1617253215709,11.87333,1917.1,1916.5,20.63175]
[1617253217308,12.9591763,1917.1,1916.6,0.39]
[1617253217506,12.9591763,1917.1,1916.6,3.47]
[1617253217708,14.0166123,1917.1,1916.6,3.47]
[1617253218308,12.9591763,1917.1,1916.6,3.47]
[1617253218510,12.9591763,1917.1,1916.6,11.29194]
[1617253218910,12.9591763,1917.1,1916.6,11.18194]
[1617253219311,12.9591763,1917.1,1916.6,8.10194]
[1617253219511,12.9591763,1917.1,1916.6,8.49194]
[1617253220129,5.1370563,1917.1,1916.6,8.49194]
[1617253220329,5.1370563,1917.1,1916.7,0.4]
[1617253220531,3.91098,1917.2,1916.9,0.39]
[1617253221731,3.91098,1917.2,1916.9,8.616]
[1617253222355,2.91098,1917.2,1916.9,8.616]
[1617253222954,2.0856576,1917.3,1916.9,8.616]
[1617253224359,2.0856576,1917.3,1916.9,11.856]
[1617253226579,2.0856576,1917.3,1917.2,0.38]
[1617253226781,13.11183461,1917.6,1917.2,0.38]
[1617253226782,0.07196461,1917.6,1917.2,0.38]
[1617253227181,5.06665094,1917.7,1917.2,0.38]
[1617253227379,5.06665094,1917.7,1917.6,6.0]
[1617253227380,2.45950024,1917.7,1917.6,6.0]
[1617253227618,2.45950024,1917.7,1917.6,8.9892]
[1617253228613,2.45950024,1917.7,1917.6,9.2861]
[1617253229814,2.45950024,1917.7,1917.3,0.4]
[1617253230014,2.45950024,1917.7,1917.3,0.68]
[1617253230426,2.45950024,1917.7,1917.4,0.41]
[1617253230427,2.40950024,1917.7,1917.4,0.41]
[1617253231628,2.40950024,1917.7,1917.4,8.22807]
[1617253231827,2.40950024,1917.7,1917.5,0.00860658]
[1617253232028,2.40950024,1917.7,1917.6,0.41]
[1617253232229,2.35950024,1917.7,1917.6,0.41]
[1617253233056,2.30950024,1917.7,1917.6,8.46]
[1617253233654,2.30950024,1917.7,1917.6,10.80945358]
[1617253234055,2.23753564,1917.7,1917.6,21.00945358]
[1617253234255,2.23753564,1917.7,1917.6,24.94945358]
[1617253234458,2.23753564,1917.7,1917.6,41.96660358]
[1617253234459,2.564e-05,1917.7,1917.6,41.96660358]
[1617253234657,0.50375227,1918.1,1917.6,41.96660358]
[1617253234658,0.45377791,1918.1,1917.7,0.308]
[1617253234857,0.45377791,1918.1,1917.9,0.45106894]
[1617253235057,0.52574252,1918.1,1918.0,21.88718374]
[1617253235257,1.2,1919.1,1918.0,25.22718374]
[1617253235481,0.0719646,1919.4,1918.0,25.22718374]
[1617253235482,7.81526,1919.0,1918.7,0.38]
[1617253235679,7.81526,1919.0,1918.5,0.39]
[1617253235680,2.2240685,1919.0,1918.5,0.39]
[1617253235878,2.1740685,1919.0,1918.5,0.39]
[1617253236278,8.9893285,1919.0,1918.5,0.39]
[1617253236479,8.9893285,1919.0,1918.5,0.677]
[1617253236879,7.81488,1919.1,1918.5,0.677]
[1617253237080,7.95488,1919.1,1918.5,0.677]
[1617253237280,7.95488,1919.1,1918.5,5.78106894]
[1617253237480,7.95488,1919.1,1918.5,0.677]
[1617253237680,7.95488,1919.1,1918.5,5.687]
[1617253238105,7.95488,1919.1,1918.5,0.677]
[1617253238303,5.9913899,1919.0,1918.5,0.39]
[1617253238503,5.9913899,1919.0,1918.4,0.28]
[1617253238903,5.9913899,1919.0,1918.4,0.77406894]
[1617253239303,9.8989799,1919.0,1918.5,0.38]
[1617253239504,9.8989799,1919.0,1918.6,0.315]
[1617253240107,17.7139099,1919.0,1918.6,0.315]
[1617253241334,16.7139099,1919.0,1918.6,0.315]
[1617253241759,0.14,1919.1,1918.6,0.315]
[1617253241967,0.14,1919.1,1918.7,0.4]
[1617253242162,0.14,1919.1,1918.8,0.4]
[1617253242360,0.14,1919.1,1919.0,0.39]
[1617253242562,0.07196461,1919.1,1919.0,0.39]
[1617253242759,0.07196461,1919.1,1918.9,0.28]
[1617253242958,0.07196461,1919.1,1918.9,5.39]
[1617253243161,0.07196461,1919.1,1918.9,0.38]
[1617253243573,0.14392922,1919.1,1918.9,0.38]
[1617253244173,0.14392922,1919.1,1919.0,5.01]
[1617253244379,0.14392922,1919.1,1918.9,0.38]
[1617253244573,0.07196461,1919.1,1918.9,0.38]
[1617253244774,0.07196461,1919.1,1918.9,5.39]
[1617253245173,0.07196461,1919.1,1918.9,0.38]
[1617253245374,0.07196461,1919.1,1918.8,5.01]
[1617253245573,0.09392922,1919.1,1918.8,5.01]
[1617253245772,0.02196461,1919.1,1918.7,0.30184986]
[1617253246180,0.02196461,1919.1,1918.8,0.4]
[1617253246385,8.91888731,1919.4,1918.9,2.35164686]
[1617253246582,1.10552731,1919.4,1919.0,0.41]
[1617253246783,0.07196461,1919.4,1919.0,0.41]
[1617253247784,0.14,1919.5,1919.2,0.41]
[1617253247986,0.14,1919.5,1918.9,0.336]
[1617253248187,20.11837583,1919.9,1919.4,0.38]
[1617253248188,16.93138,1919.9,1919.4,0.38]
[1617253248387,2.6039644,1920.3,1919.4,0.66]
[1617253248388,0.14,1920.0,1919.4,0.66]
[1617253248804,0.14,1920.0,1919.4,0.58803539]
[1617253249005,0.14,1920.0,1919.6,0.41]
[1617253249603,0.14,1920.0,1919.4,0.68]
[1617253250004,0.14,1920.0,1919.5,0.09406894]
[1617253250206,0.14,1920.0,1919.4,0.77406894]
[1617253251235,0.4,1920.2,1919.5,8.6]
[1617253251433,0.14,1920.0,1919.5,9.01]
[1617253251635,0.14,1920.0,1919.4,0.37406894]
[1617253251835,0.14,1920.0,1919.4,0.09406894]
[1617253251836,10.0348704,1920.0,1919.4,0.09406894]
[1617253252036,3.54849652,1919.9,1918.8,0.09406894]
[1617253252235,3.54849652,1919.9,1918.8,0.28]
[1617253252236,0.091,1919.5,1918.8,0.28]
[1617253252434,0.091,1919.5,1918.7,0.00784986]
[1617253252637,0.091,1919.5,1918.7,0.28784986]
[1617253252835,3.63949652,1919.5,1918.7,0.00784986]
[1617253253035,11.86233,1919.2,1918.9,0.00767567]
[1617253253236,15.76986,1919.2,1918.9,0.00767567]
[1617253253435,16.15986,1919.2,1918.9,0.00767567]
[1617253253868,2.74849652,1919.1,1918.9,0.00767567]
[1617253254067,23.01545,1919.0,1918.9,0.00767567]
[1617253254465,7.95506,1919.2,1918.9,0.00767567]
[1617253254665,10.30355652,1919.2,1918.9,0.00767567]
[1617253254864,7.95506,1919.2,1918.9,0.00767567]
[1617253255864,7.81506,1919.2,1918.9,0.00767567]
[1617253256266,6.81506,1919.2,1918.9,0.00767567]
[1617253256484,9.16181838,1919.2,1918.9,0.00767567]
[1617253256681,0.4,1919.1,1918.9,0.00767567]
[1617253256882,22.39675838,1919.0,1918.9,0.00767567]
[1617253257883,22.10569654,1919.1,1918.9,0.00767567]
[1617253258081,9.9666,1919.1,1918.9,0.00767567]
[1617253258682,7.8148,1919.1,1918.9,0.00767567]
[1617253259525,11.05,1919.0,1918.9,0.00767567]
[1617253260527,7.8148,1919.1,1918.9,0.00767567]
[1617253260926,18.20121,1919.2,1918.9,0.00767567]
[1617253260927,7.78036,1919.2,1918.9,0.00767567]
[1617253261127,6.81506,1919.2,1918.9,0.00767567]
[1617253261327,13.02351,1920.2,1918.9,0.30167567]
[1617253261328,0.41,1919.5,1918.9,0.30167567]
[1617253261528,1.604801,1919.7,1918.9,0.30167567]
[1617253261732,1.744801,1919.7,1919.1,0.816]
[1617253262330,3.90667,1919.6,1919.1,0.816]
[1617253263132,11.72001,1919.6,1919.1,0.816]
[1617253263333,11.72001,1919.6,1919.1,2.016]
[1617253263533,11.72001,1919.6,1919.1,0.356]
[1617253263733,3.90667,1919.6,1919.2,0.0075878]
[1617253265157,7.81305,1919.5,1919.2,0.3875878]
[1617253265356,7.8132,1919.6,1919.2,0.3875878]
[1617253265562,7.8132,1919.6,1919.2,0.0075878]
[1617253266357,6.8132,1919.6,1919.2,0.0075878]
[1617253266757,7.81297,1919.5,1919.2,0.0075878]
[1617253267789,10.0,1919.3,1919.2,7.8e-06]
[1617253267989,54.02434,1919.3,1917.9,0.09406894]
[1617253268189,12.13909654,1919.1,1917.9,0.09406894]
[1617253268388,12.13909654,1919.1,1917.3,14.2164]
[1617253268389,0.14,1918.7,1917.7,0.09406894]
[1617253268589,0.14,1918.7,1917.4,0.09406894]
[1617253268590,0.14,1918.4,1917.4,0.09406894]
[1617253268787,0.14,1918.2,1917.6,0.28]
[1617253268987,0.14,1918.2,1917.7,0.38]
[1617253268988,9.2197,1918.2,1917.7,0.38]
[1617253269813,7.8192,1918.0,1917.3,0.09406894]
[1617253270011,7.8192,1918.0,1917.5,0.67]
[1617253270613,15.3541588,1918.2,1917.9,0.38]
[1617253270614,9.2197,1918.2,1917.9,0.38]
[1617253270814,13.72107,1919.2,1918.1,0.41]
[1617253270815,3.9079,1918.9,1918.1,0.41]
[1617253271013,14.1606,1919.1,1918.2,1.606]
[1617253271014,14.3006,1919.1,1918.2,1.606]
[1617253271213,0.14,1919.1,1918.4,0.294]
[1617253271413,4.04756,1919.1,1918.4,0.294]
[1617253271813,4.04756,1919.1,1918.4,2.63419932]
[1617253272240,4.04756,1919.1,1918.6,0.406]
[1617253272840,3.90756,1919.1,1918.8,0.4]
[1617253273439,9.8993113,1919.0,1918.2,0.09406894]
[1617253273638,0.14,1918.9,1918.4,0.28]
[1617253274438,0.14,1918.9,1918.5,0.00688214]
[1617253275257,11.72372,1918.8,1918.5,0.00688214]
[1617253275456,3.90791,1918.8,1918.5,0.00688214]
[1617253275855,3.90791,1918.8,1918.6,0.38]
[1617253276457,2.90791,1918.8,1918.6,0.38]
[1617253276658,2.90791,1918.8,1918.7,0.39]
[1617253276857,2.90791,1918.8,1918.6,0.38]
[1617253277058,2.90791,1918.8,1918.5,0.00688214]
[1617253277480,2.90791,1918.8,1918.6,0.4]
[1617253277679,0.14,1918.9,1918.6,0.4]
[1617253277878,11.72214,1919.1,1918.6,0.4]
[1617253278480,11.72214,1919.1,1918.7,0.41]
[1617253278681,11.72214,1919.1,1918.7,0.36]
[1617253278879,11.72214,1919.1,1918.6,6.21]
[1617253279079,11.72214,1919.1,1918.5,6.88688214]
[1617253279579,11.72214,1919.1,1918.5,1.87688214]
[1617253279780,11.72214,1919.1,1918.5,0.67688214]
[1617253279984,11.72214,1919.1,1918.5,4.2153847]
[1617253279985,3.90732,1919.1,1918.5,4.2153847]
[1617253280806,4.04677,1919.2,1918.5,12.0286747]
[1617253281006,4.04677,1919.2,1918.7,0.708]
[1617253281408,3.04677,1919.2,1918.8,0.38]
[1617253281608,3.90727,1919.1,1918.8,0.38]
[1617253281808,3.90727,1919.1,1918.7,0.308]
[1617253282208,7.81454,1919.0,1918.7,0.308]
[1617253282411,7.81454,1919.0,1918.7,0.258]
[1617253282831,3.90727,1919.1,1918.8,0.39]
[1617253283231,3.04677,1919.2,1918.8,0.39]
[1617253283432,5.20976,1919.4,1918.8,0.39]
[1617253283433,7.81285,1919.4,1918.8,5.4]
[1617253283631,7.81285,1919.4,1919.1,0.41]
[1617253283833,13.16631,1919.8,1919.1,0.41]
[1617253284033,13.16631,1919.8,1919.3,0.4]
[1617253284239,3.90629,1919.4,1919.3,6.8522]
[1617253284435,3.90629,1919.4,1919.3,11.4622]
[1617253284634,3.90586,1919.7,1919.3,6.8622]
[1617253285035,3.90586,1919.7,1919.3,6.86870301]
[1617253285238,11.71759,1919.7,1919.3,6.86870301]
[1617253285662,7.81147,1919.7,1919.4,0.39]
[1617253287495,6.81147,1919.7,1919.5,0.38]
[1617253287897,6.81147,1919.7,1919.6,0.39]
[1617253289706,3.90561,1919.7,1919.6,0.39]
[1617253289906,3.90561,1919.7,1919.3,0.28650301]
[1617253290106,3.90561,1919.7,1919.5,0.41]
[1617253291512,3.90561,1919.7,1919.3,0.28650301]
[1617253291709,3.90561,1919.7,1919.3,0.69650301]
[1617253291911,3.90561,1919.7,1919.4,5.01]
[1617253292109,3.90561,1919.7,1919.3,5.70650301]
[1617253292310,2.90561,1919.7,1919.3,5.70650301]
[1617253292510,2.90561,1919.7,1919.5,0.38]
[1617253292912,2.90561,1919.7,1919.3,5.29650301]
[1617253293117,2.90561,1919.7,1919.4,5.01]
[1617253293333,2.90561,1919.7,1919.3,0.67650301]
[1617253293738,13.0,1919.6,1919.3,0.67650301]
[1617253293935,13.0,1919.6,1919.4,5.01]
[1617253294135,13.0,1919.6,1919.3,0.00650301]
[1617253294335,15.0834347,1919.6,1919.3,0.00650301]
[1617253294535,15.0334347,1919.6,1919.3,0.00650301]
[1617253294736,15.0334347,1919.6,1919.3,6.00650301]
[1617253295135,7.81339,1919.5,1919.3,6.00650301]
[1617253297368,6.81339,1919.5,1919.3,6.00650301]
[1617253297768,16.88179976,1919.4,1919.3,6.00650301]
[1617253298168,14.55,1919.4,1919.3,6.00650301]
[1617253299585,1.36339,1919.5,1919.3,6.00650301]
[1617253302417,27.97855138,1919.4,1919.3,6.00650301]
[1617253302615,36.33395138,1919.4,1918.6,5.01]
[1617253302817,36.33395138,1919.4,1918.0,15.1782]
[1617253302818,12.20909654,1919.3,1918.0,15.1782]
[1617253303014,12.20909654,1919.3,1918.1,0.02406894]
[1617253303015,0.049,1919.0,1918.1,0.02406894]
[1617253303216,0.049,1919.0,1918.0,15.4582]
[1617253303217,7.81707,1918.6,1918.0,0.28]
[1617253303415,7.81707,1918.6,1917.9,0.39]
[1617253303416,13.97267,1918.6,1917.9,0.39]
[1617253303856,13.97267,1918.6,1917.9,2.78642044]
[1617253303857,0.07,1918.5,1917.9,2.78642044]
[1617253304062,0.21,1918.6,1918.0,1.2]
[1617253304259,0.14,1918.6,1918.1,2.39642044]
[1617253304455,0.14,1918.6,1918.2,0.38]
[1617253304656,7.88588,1918.8,1918.3,2.78642044]
[1617253304855,7.81588,1918.8,1918.4,0.28]
[1617253305656,7.81588,1918.8,1918.3,0.28]
[1617253305857,0.07,1918.9,1918.3,0.28]
[1617253306059,0.07,1918.9,1918.2,0.40406894]
[1617253306263,0.07,1918.9,1917.9,0.02406894]
[1617253306468,0.049,1918.7,1918.0,0.781]
[1617253306669,0.049,1918.7,1918.1,0.40406894]
[1617253306872,7.86531,1918.7,1918.1,0.40406894]
[1617253307072,7.86531,1918.7,1918.1,0.02406894]
[1617253307273,0.07,1918.6,1918.1,0.39]
[1617253307469,6.86531,1918.7,1918.3,0.4]
[1617253307669,6.86531,1918.7,1918.5,0.39]
[1617253307870,0.14,1918.8,1918.5,0.39]
[1617253308071,2.0843473,1918.9,1918.5,0.39]
[1617253308270,5.9923373,1918.9,1918.5,0.39]
[1617253308470,5.9923373,1918.9,1918.2,5.41]
[1617253308471,7.81595,1918.8,1918.2,5.41]
[1617253308670,5.9923373,1918.9,1918.0,5.41]
[1617253308875,0.21,1918.8,1918.0,5.41]
[1617253309085,0.21,1918.8,1918.1,0.02406894]
[1617253309287,0.21,1918.8,1918.0,0.42406894]
[1617253309686,0.21,1918.8,1918.1,0.39]
[1617253309887,7.8167,1918.6,1918.1,0.67]
[1617253310288,11.72505,1918.6,1918.1,0.67]
[1617253311086,11.72505,1918.6,1918.1,1.87]
[1617253311287,11.72505,1918.6,1918.1,0.67]
[1617253311491,3.90835,1918.6,1918.1,0.28]
[1617253312315,6.81694,1918.5,1918.1,0.28]
[1617253312515,6.81694,1918.5,1918.1,0.68]
[1617253312715,6.81694,1918.5,1918.0,0.38]
[1617253312916,6.81694,1918.5,1917.9,6.49]
[1617253313115,6.81694,1918.5,1917.9,5.29]
[1617253313116,3.9089,1918.3,1917.9,5.29]
[1617253313320,3.9089,1918.3,1917.7,1.18940805]
[1617253313321,4.6314,1918.3,1917.7,1.18940805]
[1617253313517,7.819,1918.1,1917.7,1.18940805]
[1617253313716,15.4584,1918.1,1917.7,1.18940805]
[1617253313917,15.4584,1918.1,1917.4,0.39]
[1617253313918,0.21,1918.0,1917.4,0.39]
[1617253314341,0.21,1918.0,1916.9,0.02406894]
[1617253314342,5.9958966,1917.8,1916.9,0.02406894]
[1617253314542,7.8221,1917.4,1916.9,0.02406894]
[1617253314740,2.39198966,1917.3,1916.9,0.4]
[1617253314940,0.07,1917.3,1916.7,0.41]
[1617253315340,0.07,1917.3,1916.8,0.41]
[1617253315540,0.07,1917.3,1916.7,0.725]
[1617253315541,7.473,1917.4,1917.0,0.39]
[1617253315740,7.473,1917.4,1916.4,1.22406894]
[1617253315939,0.07,1917.3,1916.4,1.22406894]
[1617253316140,7.892,1917.3,1916.9,0.41]
[1617253316540,7.822,1917.3,1916.9,0.41]
[1617253317375,6.822,1917.3,1917.0,0.0068559]
[1617253317776,9.2120346,1917.3,1917.0,0.0068559]
[1617253318779,13.1238346,1917.3,1917.0,0.0068559]
[1617253318984,24.99924404,1917.2,1917.0,0.0068559]
[1617253319179,43.57913114,1917.1,1917.0,0.0068559]
[1617253319586,31.4400346,1917.1,1917.0,0.0068559]
[1617253319786,43.57913114,1917.1,1917.0,0.0068559]
[1617253319988,48.58913114,1917.1,1917.0,0.0068559]
[1617253321189,56.41389114,1917.1,1917.0,0.0068559]
[1617253321389,57.61389114,1917.1,1917.0,0.0068559]
[1617253321589,57.61389114,1917.1,1915.9,0.02406894]
[1617253321590,95.61389114,1917.1,1915.9,0.42406894]
[1617253321792,3.91342,1916.6,1915.9,0.71106894]
[1617253321994,3.91342,1916.6,1916.0,0.41]
[1617253322214,16.05251654,1916.6,1915.9,0.42406894]
[1617253322415,10.73892,1916.6,1915.9,0.42406894]
[1617253322613,10.73892,1916.6,1916.3,0.4]
[1617253322815,7.8255,1916.6,1916.3,0.4]
[1617253323020,15.58544,1916.9,1916.3,0.4]
[1617253323021,10.43544,1916.9,1916.3,0.4]
[1617253323218,10.43544,1916.9,1916.4,0.364]
[1617253323416,0.07,1916.8,1916.4,0.364]
[1617253323815,10.43544,1916.9,1916.4,0.364]
[1617253324015,0.1636126,1916.9,1916.6,0.38]
[1617253324415,0.1636126,1916.9,1916.2,1.2]
[1617253324852,0.07,1916.8,1916.2,1.2]
[1617253325051,7.82682,1916.5,1916.2,1.2]
[1617253325251,3.91337,1916.4,1916.2,1.2]
[1617253326152,0.47,1916.8,1916.3,0.4]
[1617253326153,0.07,1916.8,1916.3,0.4]
[1617253326352,0.1636126,1916.9,1916.3,0.4]
[1617253326353,0.1636126,1916.9,1916.6,0.39]
[1617253326553,0.1636126,1916.9,1916.8,0.41]
[1617253327153,0.1636126,1916.9,1916.5,0.9771]
[1617253327365,4.1736126,1917.0,1916.6,0.41]
[1617253327565,3.91172,1917.2,1916.7,0.41]
[1617253327566,0.07,1917.1,1916.7,0.41]
[1617253327766,0.21,1917.1,1916.7,0.41]